fUST/lending_fUST_20250627
["ID","MTS","AMOUNT","RATE_DAILY","PERIOD"]
[367969719,1750979432691,-630.7,0.00021623,2]
[367969720,1750979432701,-460.0,0.00021623,2]
[367969721,1750979432711,-3229.57,0.00021623,2]
[367969722,1750979432720,-581.62782128,0.00021623,2]
[367969723,1750979432734,-1284.40621717,0.00021623,2]
[367969724,1750979432756,-1066.49596155,0.00021623,2]
[367969725,1750979432767,-460.0,0.00021624,2]
[367969726,1750979432776,-460.0,0.00021624,2]
[367969727,1750979432786,-460.0,0.00021624,2]
[367969728,1750979432796,-460.0,0.00021624,2]
[367969729,1750979432806,-460.0,0.00021624,2]
[367969730,1750979432816,-460.0,0.00021624,2]
[367969731,1750979432826,-460.0,0.00021624,2]
[367969732,1750979432836,-460.0,0.00021624,2]
[367969733,1750979432846,-460.0,0.00021624,2]
[367969734,1750979432855,-460.0,0.00021624,2]
[367969735,1750979432865,-460.0,0.00021624,2]
[367969736,1750979432875,-461.31065203,0.00021624,2]
[367969737,1750979432887,-460.0,0.00021624,2]
[367969738,1750979432899,-460.0,0.00021624,2]
[367969739,1750979432909,-218.80401908,0.00021624,2]
[367969786,1750979438137,-407.50811522,0.00021621,2]
[367969788,1750979438150,-52.49188478,0.00021621,2]
[367969790,1750979438159,-327.50811522,0.00021623,2]
[367969792,1750979438171,-26.21643898,0.00021623,2]
[367969795,1750979438182,-500.0,0.00021623,2]
[367969796,1750979438191,-500.0,0.00021623,2]
[367969798,1750979438200,-500.0,0.00021623,2]
[367969800,1750979438210,-246.35621711,0.00021623,2]
[367969802,1750979438219,-500.0,0.00021623,2]
[367969803,1750979438228,-500.0,0.00021623,2]
[367969804,1750979438238,-500.0,0.00021623,2]
[367969805,1750979438248,-500.0,0.00021623,2]
[367969806,1750979438257,-500.0,0.00021623,2]
[367969807,1750979438267,-493.48440354,0.00021623,2]
[367969808,1750979438276,-500.0,0.00021623,2]
[367969809,1750979438285,-500.0,0.00021623,2]
[367969810,1750979438295,-500.0,0.00021623,2]
[367969811,1750979438304,-500.0,0.00021623,2]
[367969812,1750979438313,-500.0,0.00021623,2]
[367969813,1750979438323,-500.0,0.00021623,2]
[367969814,1750979438332,-500.0,0.00021623,2]
[367969815,1750979438341,-500.0,0.00021623,2]
[367969816,1750979438351,-500.0,0.00021623,2]
[367969817,1750979438360,-500.0,0.00021623,2]
[367969818,1750979438369,-500.0,0.00021623,2]
[367969819,1750979438379,-500.0,0.00021623,2]
[367969820,1750979438388,-500.0,0.00021623,2]
[367969821,1750979438398,-500.0,0.00021623,2]
[367969822,1750979438408,-318.45696266,0.00021623,2]
[367969823,1750979438418,-460.0,0.00021623,2]
[367969824,1750979438428,-460.0,0.00021624,2]
[367969825,1750979438437,-460.0,0.00021624,2]
[367969826,1750979438447,-460.0,0.00021624,2]
[367969827,1750979438456,-460.0,0.00021624,2]
[367969828,1750979438466,-1290.73024921,0.00021624,2]
[367969829,1750979438687,-2109.61975079,0.00021624,2]
[367969830,1750979438697,-2186.36,0.00021624,2]
[367969831,1750979438706,-797.54,0.00021624,2]
[367969832,1750979438715,-618.59,0.00021624,2]
[367969833,1750979438724,-460.0,0.00021624,2]
[367969834,1750979438734,-460.0,0.00021624,2]
[367969835,1750979438744,-460.0,0.00021624,2]
[367969836,1750979438754,-2357.43,0.00021624,2]
[367969837,1750979438763,-3452.5,0.00021624,2]
[367969838,1750979438773,-460.0,0.00021624,2]
[367969839,1750979438782,-658.21,0.00021624,2]
[367969840,1750979438791,-713.03,0.00021624,2]
[367969841,1750979438801,-460.0,0.00021624,2]
[367969842,1750979439026,-1607.4,0.00021624,2]
[367969843,1750979439035,-2138.05,0.00021624,2]
[367969844,1750979439045,-901.69,0.00021624,2]
[367969845,1750979439054,-460.0,0.00021624,2]
[367969846,1750979439063,-460.0,0.00021624,2]
[367969847,1750979439072,-815.9,0.00021624,2]
[367969848,1750979439081,-460.0,0.00021624,2]
[367969849,1750979439090,-756.94,0.00021624,2]
[367969850,1750979439099,-460.0,0.00021624,2]
[367969851,1750979439109,-460.0,0.00021624,2]
[367969852,1750979439118,-726.33,0.00021624,2]
[367969853,1750979439127,-566.48076331,0.00021625,2]
[367969854,1750979439136,-457.6974723,0.00021625,2]
[367969855,1750979439145,-460.0,0.00021625,2]
[367969856,1750979439154,-437.27653967,0.00021625,2]
[367969857,1750979439163,-460.0,0.00021625,2]
[367969858,1750979439172,-460.0,0.00021625,2]
[367969859,1750979439182,-460.0,0.00021625,2]
[367969860,1750979439192,-198.50818203,0.00021625,2]
[367969861,1750979439201,-460.0,0.00021625,2]
[367969862,1750979439212,-460.0,0.00021625,2]
[367969863,1750979439221,-496.07,0.00021625,2]
[367969864,1750979439230,-496.07,0.00021625,2]
[367969865,1750979439240,-459.11867623,0.00021625,2]
[367969866,1750979439249,-460.0,0.00021625,2]
[367969867,1750979439259,-460.0,0.00021625,2]
[367969868,1750979439269,-460.0,0.00021625,2]
[367969869,1750979439278,-460.0,0.00021625,2]
[367969870,1750979439287,-460.0,0.00021625,2]
[367969871,1750979439297,-465.90377688,0.00021625,2]
[367969872,1750979439306,-460.0,0.00021625,2]
[367969873,1750979439315,-460.0,0.00021625,2]
[367969874,1750979439324,-461.98026201,0.00021625,2]
[367969875,1750979439334,-460.0,0.00021625,2]
[367969876,1750979439343,-434.00333335,0.00021625,2]
[367969877,1750979439352,-460.85701846,0.00021625,2]
[367969878,1750979439361,-333.57905693,0.00021625,2]
[367969879,1750979439371,-460.0,0.00021625,2]
[367969880,1750979439380,-460.0,0.00021625,2]
[367969881,1750979439389,-460.0,0.00021625,2]
[367969882,1750979439399,-460.0,0.00021625,2]
[367969883,1750979439410,-460.0,0.00021625,2]
[367969884,1750979439423,-460.0,0.00021625,2]
[367969885,1750979439432,-460.0,0.00021625,2]
[367969886,1750979439441,-446.66811015,0.00021625,2]
[367969887,1750979439451,-460.0,0.00021625,2]
[367969888,1750979439461,-460.0,0.00021625,2]
[367969889,1750979439471,-460.0,0.00021625,2]
[367969890,1750979439480,-460.0,0.00021625,2]
[367969891,1750979439490,-460.0,0.00021625,2]
[367969892,1750979439500,-460.0,0.00021625,2]
[367969893,1750979439510,-460.0,0.00021625,2]
[367969894,1750979439519,-460.0,0.00021625,2]
[367969895,1750979439530,-460.0,0.00021625,2]
[367969896,1750979439539,-460.0,0.00021625,2]
[367969897,1750979439548,-466.37469576,0.00021625,2]
[367969899,1750979439558,-460.0,0.00021625,2]
[367969901,1750979439567,-460.0,0.00021625,2]
[367969903,1750979439576,-655.09,0.00021625,2]
[367969905,1750979439588,-440.0,0.00021625,2]
[367969906,1750979439597,-460.0,0.00021625,2]
[367969908,1750979439606,-460.0,0.00021625,2]
[367969910,1750979439616,-460.0,0.00021625,2]
[367969912,1750979439626,-460.0,0.00021625,2]
[367969914,1750979439636,-460.0,0.00021625,2]
[367969915,1750979439645,-460.0,0.00021625,2]
[367969916,1750979439654,-462.89133234,0.00021625,2]
[367969918,1750979439665,-460.0,0.00021625,2]
[367969919,1750979439674,-460.0,0.00021625,2]
[367969920,1750979439683,-460.0,0.00021625,2]
[367969921,1750979439692,-460.76791442,0.00021625,2]
[367969922,1750979439702,-460.0,0.00021625,2]
[367969923,1750979439712,-460.0,0.00021625,2]
[367969924,1750979439721,-460.0,0.00021625,2]
[367969925,1750979439730,-460.0,0.00021625,2]
[367969926,1750979439739,-460.0,0.00021625,2]
[367969927,1750979439752,-460.0,0.00021625,2]
[367969928,1750979439761,-460.0,0.00021625,2]
[367969929,1750979439770,-460.0,0.00021625,2]
[367969930,1750979439780,-460.0,0.00021625,2]
[367969931,1750979439789,-451.48385704,0.00021625,2]
[367969932,1750979439799,-460.0,0.00021625,2]
[367969933,1750979439808,-460.0,0.00021625,2]
[367969934,1750979439818,-460.0,0.00021625,2]
[367969935,1750979439828,-460.0,0.00021625,2]
[367969936,1750979439837,-460.0,0.00021625,2]
[367969937,1750979439847,-460.0,0.00021625,2]
[367969938,1750979439856,-460.0,0.00021625,2]
[367969939,1750979439865,-460.0,0.00021625,2]
[367969940,1750979439875,-460.0,0.00021625,2]
[367969941,1750979439884,-460.0,0.00021625,2]
[367969942,1750979439898,-460.0,0.00021625,2]
[367969943,1750979439907,-403.83987116,0.00021625,2]
[367969944,1750979439916,-460.0,0.00021625,2]
[367969946,1750979439926,-460.0,0.00021625,2]
[367969948,1750979439936,-460.0,0.00021625,2]
[367969950,1750979439945,-460.0,0.00021625,2]
[367969952,1750979439955,-460.0,0.00021625,2]
[367969954,1750979439965,-460.0,0.00021625,2]
[367969956,1750979439975,-500.0,0.00021625,2]
[367969958,1750979439985,-500.0,0.00021625,2]
[367969960,1750979439997,-460.0,0.00021625,2]
[367969962,1750979440007,-460.0,0.00021625,2]
[367969964,1750979440016,-460.0,0.00021625,2]
[367969966,1750979440025,-460.0,0.00021625,2]
[367969968,1750979440034,-460.0,0.00021625,2]
[367969970,1750979440044,-460.0,0.00021625,2]
[367969972,1750979440053,-460.0,0.00021625,2]
[367969974,1750979440062,-460.0,0.00021625,2]
[367969976,1750979440071,-460.0,0.00021625,2]
[367969978,1750979440081,-460.0,0.00021625,2]
[367969980,1750979440090,-460.0,0.00021625,2]
[367969982,1750979440100,-460.0,0.00021625,2]
[367969984,1750979440109,-460.31664621,0.00021625,2]
[367969986,1750979440119,-460.0,0.00021625,2]
[367969988,1750979440128,-460.0,0.00021625,2]
[367969990,1750979440137,-460.0,0.00021625,2]
[367969992,1750979440146,-460.0,0.00021625,2]
[367969994,1750979440155,-498.31,0.00021625,2]
[367969996,1750979440164,-460.0,0.00021625,2]
[367969998,1750979440174,-460.0,0.00021625,2]
[367970000,1750979440183,-460.0,0.00021625,2]
[367970002,1750979440192,-460.0,0.00021625,2]
[367970004,1750979440201,-460.0,0.00021625,2]
[367970006,1750979440211,-460.0,0.00021625,2]
[367970008,1750979440221,-460.0,0.00021625,2]
[367970010,1750979440230,-513.58219566,0.00021625,2]
[367970012,1750979440240,-460.0,0.00021625,2]
[367970014,1750979440251,-460.0,0.00021625,2]
[367970016,1750979440260,-460.0,0.00021625,2]
[367970018,1750979440269,-460.0,0.00021625,2]
[367970020,1750979440280,-460.0,0.00021625,2]
[367970022,1750979440289,-460.0,0.00021625,2]
[367970024,1750979440298,-460.0,0.00021625,2]
[367970026,1750979440307,-460.0,0.00021625,2]
[367970028,1750979440316,-460.0,0.00021625,2]
[367970030,1750979440326,-460.0,0.00021625,2]
[367970032,1750979440335,-460.0,0.00021625,2]
[367970034,1750979440344,-460.0,0.00021625,2]
[367970036,1750979440353,-460.0,0.00021625,2]
[367970038,1750979440363,-235.9965194,0.00021625,2]
[367970040,1750979440373,-489.442398,0.00021625,2]
[367970042,1750979440383,-463.41204926,0.00021625,2]
[367970044,1750979440393,-460.0,0.00021625,2]
[367970046,1750979440403,-460.0,0.00021625,2]
[367970048,1750979440414,-460.0,0.00021625,2]
[367970050,1750979440423,-460.0,0.00021625,2]
[367970052,1750979440432,-460.0,0.00021625,2]
[367970054,1750979440442,-460.0,0.00021625,2]
[367970056,1750979440451,-460.86255162,0.00021625,2]
[367970058,1750979440462,-460.0,0.00021625,2]
[367970060,1750979440471,-460.0,0.00021625,2]
[367970062,1750979440480,-460.0,0.00021625,2]
[367970064,1750979440490,-460.0,0.00021625,2]
[367970066,1750979440500,-460.0,0.00021625,2]
[367970068,1750979440510,-460.0,0.00021625,2]
[367970070,1750979440519,-473.91,0.00021625,2]
[367970072,1750979440529,-460.0,0.00021625,2]
[367970074,1750979440539,-403.34014592,0.00021625,2]
[367970076,1750979440548,-460.0,0.00021625,2]
[367970078,1750979440557,-460.0,0.00021625,2]
[367970080,1750979440566,-460.0,0.00021625,2]
[367970082,1750979440576,-460.0,0.00021625,2]
[367970084,1750979440585,-466.44,0.00021625,2]
[367970086,1750979440595,-460.0,0.00021625,2]
[367970088,1750979440604,-460.0,0.00021625,2]
[367970091,1750979440614,-460.0,0.00021625,2]
[367970092,1750979440623,-460.0,0.00021625,2]
[367970095,1750979440633,-460.0,0.00021625,2]
[367970097,1750979440642,-460.0,0.00021625,2]
[367970099,1750979440651,-460.0,0.00021625,2]
[367970100,1750979440661,-460.0,0.00021625,2]
[367970102,1750979440670,-460.0,0.00021625,2]
[367970104,1750979440679,-573.7,0.00021625,2]
[367970106,1750979440688,-460.0,0.00021625,2]
[367970108,1750979440698,-460.0,0.00021625,2]
[367970111,1750979440707,-658.48,0.00021625,2]
[367970113,1750979440717,-460.0,0.00021625,2]
[367970114,1750979440726,-460.0,0.00021625,2]
[367970116,1750979440735,-461.33785418,0.00021625,2]
[367970118,1750979440745,-460.0,0.00021625,2]
[367970120,1750979440754,-460.0,0.00021625,2]
[367970122,1750979440763,-738.42,0.00021625,2]
[367970124,1750979440772,-460.0,0.00021625,2]
[367970126,1750979440781,-891.82,0.00021625,2]
[367970128,1750979440790,-460.0,0.00021625,2]
[367970130,1750979440801,-346.52855423,0.00021625,2]
[367970132,1750979440812,-460.0,0.00021625,2]
[367970134,1750979440821,-460.0,0.00021625,2]
[367970136,1750979440830,-500.0,0.00021625,2]
[367970138,1750979440839,-460.0,0.00021625,2]
[367970140,1750979440848,-460.0,0.00021625,2]
[367970142,1750979440857,-776.48,0.00021625,2]
[367970144,1750979440866,-460.0,0.00021625,2]
[367970146,1750979440875,-460.11583239,0.00021625,2]
[367970148,1750979440885,-460.0,0.00021625,2]
[367970150,1750979440897,-536.59,0.00021625,2]
[367970152,1750979440906,-1554.53,0.00021625,2]
[367970154,1750979440914,-1554.53,0.00021625,2]
[367970155,1750979440923,-706.04,0.00021625,2]
[367970157,1750979440934,-460.0,0.00021625,2]
[367970159,1750979440943,-460.0,0.00021625,2]
[367970161,1750979440952,-460.0,0.00021625,2]
[367970163,1750979440961,-589.38515784,0.00021625,2]
[367970165,1750979440971,-613.8,0.00021625,2]
[367970167,1750979440980,-460.0,0.00021625,2]
[367970169,1750979440989,-460.0,0.00021625,2]
[367970171,1750979440999,-460.0,0.00021625,2]
[367970173,1750979441008,-460.0,0.00021625,2]
[367970175,1750979441017,-460.0,0.00021625,2]
[367970177,1750979441026,-1006.27,0.00021625,2]
[367970179,1750979441035,-432.54659941,0.00021625,2]
[367970181,1750979441044,-495.33,0.00021625,2]
[367970183,1750979441053,-352.74746823,0.00021625,2]
[367970185,1750979441062,-460.0,0.00021625,2]
[367970187,1750979441071,-460.0,0.00021625,2]
[367970189,1750979441081,-386.66980465,0.00021625,2]
[367970191,1750979441090,-337.62674489,0.00021625,2]
[367970193,1750979441099,-460.0,0.00021625,2]
[367970195,1750979441108,-460.0,0.00021625,2]
[367970196,1750979441117,-460.0,0.00021625,2]
[367970198,1750979441126,-372.74742083,0.00021625,2]
[367970200,1750979441135,-460.0,0.00021625,2]
[367970202,1750979441144,-460.0,0.00021625,2]
[367970204,1750979441153,-460.0,0.00021625,2]
[367970206,1750979441162,-768.68,0.00021625,2]
[367970208,1750979441171,-460.0,0.00021625,2]
[367970210,1750979441180,-471.52,0.00021625,2]
[367970212,1750979441190,-460.0,0.00021625,2]
[367970214,1750979441199,-460.0,0.00021625,2]
[367970215,1750979441208,-782.42,0.00021625,2]
[367970216,1750979441217,-1436.46,0.00021625,2]
[367970218,1750979441227,-460.0,0.00021625,2]
[367970219,1750979441236,-460.0,0.00021625,2]
[367970221,1750979441246,-460.0,0.00021625,2]
[367970222,1750979441255,-460.0,0.00021625,2]
[367970223,1750979441264,-601.94850018,0.00021625,2]
[367970224,1750979441274,-460.0,0.00021625,2]
[367970225,1750979441283,-460.0,0.00021625,2]
[367970226,1750979441292,-849.72,0.00021625,2]
[367970227,1750979441301,-460.0,0.00021625,2]
[367970228,1750979441310,-155.83589999,0.00021625,2]
[367970229,1750979441320,-947.07,0.00021625,2]
[367970230,1750979441329,-460.0,0.00021625,2]
[367970232,1750979441338,-460.0,0.00021625,2]
[367970234,1750979441348,-668.06,0.00021625,2]
[367970236,1750979441357,-875.36,0.00021625,2]
[367970238,1750979441366,-460.0,0.00021625,2]
[367970240,1750979441377,-460.0,0.00021625,2]
[367970242,1750979441386,-460.0,0.00021625,2]
[367970244,1750979441395,-460.0,0.00021625,2]
[367970246,1750979441405,-792.39,0.00021625,2]
[367970248,1750979441414,-460.0,0.00021625,2]
[367970249,1750979441423,-460.0,0.00021625,2]
[367970251,1750979441432,-500.0,0.00021625,2]
[367970253,1750979441442,-392.32,0.00021625,2]
[367970255,1750979441452,-460.0,0.00021625,2]
[367970257,1750979441461,-500.82241896,0.00021625,2]
[367970259,1750979441472,-460.0,0.00021625,2]
[367970261,1750979441481,-460.0,0.00021625,2]
[367970263,1750979441491,-460.0,0.00021625,2]
[367970265,1750979441500,-460.0,0.00021625,2]
[367970267,1750979441510,-460.0,0.00021625,2]
[367970269,1750979441520,-457.80282122,0.00021625,2]
[367970271,1750979441529,-460.0,0.00021625,2]
[367970273,1750979441539,-460.0,0.00021625,2]
[367970274,1750979441548,-460.0,0.00021625,2]
[367970276,1750979441558,-460.0,0.00021625,2]
[367970278,1750979441567,-460.0,0.00021625,2]
[367970280,1750979441576,-460.0,0.00021626,2]
[367970282,1750979441587,-460.0,0.00021626,2]
[367970284,1750979441596,-500.0,0.00021626,2]
[367970286,1750979441605,-500.0,0.00021626,2]
[367970287,1750979441614,-460.0,0.00021626,2]
[367970289,1750979441623,-460.0,0.00021626,2]
[367970291,1750979441632,-460.0,0.00021626,2]
[367970293,1750979441642,-460.0,0.00021626,2]
[367970294,1750979441651,-460.0,0.00021626,2]
[367970296,1750979441660,-460.0,0.00021626,2]
[367970298,1750979441669,-460.0,0.00021626,2]
[367970300,1750979441678,-500.0,0.00021626,2]
[367970302,1750979441687,-460.0,0.00021626,2]
[367970303,1750979441697,-461.47507191,0.00021626,2]
[367970305,1750979441707,-460.0,0.00021626,2]
[367970307,1750979441716,-156.39141325,0.00021626,2]
[367970309,1750979441725,-437.8491313,0.00021626,2]
[367970310,1750979441735,-386.29497033,0.00021626,2]
[367970312,1750979441745,-460.0,0.00021626,2]
[367970314,1750979441754,-460.0,0.00021626,2]
[367970316,1750979441763,-460.0,0.00021626,2]
[367970318,1750979441772,-460.0,0.00021626,2]
[367970320,1750979441783,-460.0,0.00021626,2]
[367970322,1750979441792,-460.0,0.00021626,2]
[367970324,1750979441803,-205.93978856,0.00021626,2]
[367970326,1750979441812,-500.0,0.00021626,2]
[367970327,1750979441820,-613.84,0.00021626,2]
[367970329,1750979441830,-1215.68,0.00021626,2]
[367970331,1750979441839,-460.0,0.00021626,2]
[367970333,1750979441848,-460.0,0.00021626,2]
[367970335,1750979441857,-1554.53,0.00021626,2]
[367970337,1750979441866,-1554.53,0.00021626,2]
[367970339,1750979441875,-1554.53,0.00021626,2]
[367970341,1750979441886,-1554.53,0.00021626,2]
[367970342,1750979441897,-1554.53,0.00021626,2]
[367970344,1750979441907,-157.9651217,0.00021626,2]
[367970346,1750979441916,-460.0,0.00021626,2]
[367970348,1750979441926,-502.75,0.00021626,2]
[367970362,1750979441935,-543.43,0.00021626,2]
[367970364,1750979442074,-460.0,0.00021626,2]
[367970366,1750979442084,-460.0,0.00021626,2]
[367970368,1750979442093,-5133.58,0.00021626,2]
[367970370,1750979442102,-570.39,0.00021626,2]
[367970372,1750979442111,-460.0,0.00021626,2]
[367970374,1750979442121,-1270.81,0.00021626,2]
[367970376,1750979442130,-728.31,0.00021626,2]
[367970378,1750979442139,-460.0,0.00021626,2]
[367970380,1750979442148,-1084.44,0.00021626,2]
[367970382,1750979442158,-1888.26,0.00021626,2]
[367970384,1750979442167,-460.0,0.00021627,2]
[367970385,1750979442177,-190.84577573,0.00021627,2]
[367970387,1750979442187,-460.0,0.00021627,2]
[367970389,1750979442196,-460.0,0.00021627,2]
[367970391,1750979442206,-460.90932806,0.00021627,2]
[367970393,1750979442215,-460.0,0.00021627,2]
[367970395,1750979442225,-227.526548,0.00021627,4]
[367970397,1750979442235,-460.0,0.00021627,2]
[367970399,1750979442244,-460.0,0.00021627,2]
[367970401,1750979442253,-165.87209766,0.00021627,2]
[367970403,1750979442262,-460.0,0.00021627,2]
[367970405,1750979442272,-460.0,0.00021627,2]
[367970407,1750979442281,-460.0,0.00021627,2]
[367970408,1750979442290,-460.0,0.00021627,2]
[367970410,1750979442299,-460.0,0.00021627,2]
[367970412,1750979442309,-455.81086241,0.00021627,2]
[367970414,1750979442319,-460.0,0.00021627,2]
[367970416,1750979442328,-460.0,0.00021627,2]
[367970418,1750979442337,-489.86,0.00021627,2]
[367970420,1750979442347,-500.0,0.00021627,2]
[367970422,1750979442356,-460.0,0.00021627,2]
[367970424,1750979442365,-460.0,0.00021627,2]
[367970426,1750979442375,-460.0,0.00021627,2]
[367970428,1750979442384,-460.0,0.00021627,2]
[367970430,1750979442393,-460.0,0.00021627,2]
[367970432,1750979442403,-460.0,0.00021627,2]
[367970434,1750979442412,-460.0,0.00021627,2]
[367970435,1750979442421,-460.0,0.00021627,2]
[367970437,1750979442431,-618.34,0.00021627,2]
[367970439,1750979442440,-457.14149119,0.00021627,2]
[367970441,1750979442450,-460.0,0.00021627,2]
[367970443,1750979442461,-500.0,0.00021627,2]
[367970445,1750979442470,-872.26,0.00021627,2]
[367970447,1750979442479,-755.89,0.00021627,2]
[367970449,1750979442488,-468.88,0.00021627,2]
[367970451,1750979442498,-460.0,0.00021627,2]
[367970453,1750979442508,-460.0,0.00021627,2]
[367970455,1750979442517,-460.0,0.00021627,2]
[367970457,1750979442526,-460.0,0.00021627,2]
[367970458,1750979442535,-460.0,0.00021627,2]
[367970460,1750979442545,-460.0,0.00021627,2]
[367970462,1750979442554,-460.0,0.00021627,2]
[367970464,1750979442565,-463.2347657,0.00021627,2]
[367970466,1750979442574,-460.0,0.00021627,2]
[367970468,1750979442583,-460.0,0.00021627,2]
[367970470,1750979442593,-887.22,0.00021627,2]
[367970472,1750979442603,-460.0,0.00021627,2]
[367970474,1750979442612,-3742.88,0.00021627,2]
[367970476,1750979442622,-460.0,0.00021627,2]
[367970478,1750979442632,-522.93,0.00021627,2]
[367970480,1750979442641,-460.0,0.00021627,2]
[367970482,1750979442651,-883.34,0.00021627,2]
[367970484,1750979442660,-1587.01,0.00021627,2]
[367970486,1750979442669,-460.0,0.00021627,2]
[367970488,1750979442679,-460.0,0.00021627,2]
[367970490,1750979442689,-460.0,0.00021627,2]
[367970492,1750979442698,-460.0,0.00021627,2]
[367970494,1750979442708,-460.0,0.00021627,2]
[367970496,1750979442717,-538.13,0.00021627,2]
[367970498,1750979442727,-552.08,0.00021627,2]
[367970501,1750979442737,-1031.33,0.00021627,2]
[367970503,1750979442746,-460.0,0.00021627,2]
[367970505,1750979442756,-908.47,0.00021627,2]
[367970507,1750979442766,-460.0,0.00021627,2]
[367970510,1750979442775,-473.48,0.00021627,2]
[367970513,1750979442784,-460.0,0.00021627,2]
[367970516,1750979442794,-657.42,0.00021627,2]
[367970518,1750979442803,-460.0,0.00021627,2]
[367970521,1750979442813,-460.0,0.00021627,2]
[367970524,1750979442822,-898.22,0.00021627,2]
[367970526,1750979442831,-460.0,0.00021627,2]
[367970528,1750979442840,-473.53420988,0.00021627,2]
[367970530,1750979442848,-253.80761887,0.00021627,2]
[367970531,1750979442858,-460.0,0.00021627,2]
[367970533,1750979442867,-1554.53,0.00021627,2]
[367970535,1750979442876,-1554.53,0.00021627,2]
[367970537,1750979442886,-460.0,0.00021627,2]
[367970539,1750979442899,-460.0,0.00021627,2]
[367970541,1750979442908,-500.0,0.00021627,2]
[367970543,1750979442917,-460.0,0.00021627,2]
[367970545,1750979442926,-1150.52,0.00021627,2]
[367970547,1750979442936,-460.0,0.00021627,2]
[367970549,1750979442945,-463.67,0.00021627,2]
[367970551,1750979442955,-460.0,0.00021627,2]
[367970553,1750979442964,-460.0,0.00021627,2]
[367970554,1750979442976,-2192.98,0.00021627,2]
[367970556,1750979442987,-460.0,0.00021627,2]
[367970558,1750979442996,-460.0,0.00021627,2]
[367970560,1750979443006,-705.07,0.00021627,2]
[367970562,1750979443015,-511.73,0.00021627,2]
[367970564,1750979443025,-460.0,0.00021627,2]
[367970566,1750979443034,-500.0,0.00021627,2]
[367970568,1750979443044,-460.0,0.00021627,2]
[367970570,1750979443053,-1087.66,0.00021627,2]
[367970572,1750979443062,-460.0,0.00021627,2]
[367970574,1750979443070,-1706.14,0.00021627,2]
[367970576,1750979443080,-460.0,0.00021627,2]
[367970578,1750979443088,-1532.84,0.00021627,2]
[367970580,1750979443097,-460.0,0.00021627,2]
[367970581,1750979443106,-450.0,0.00021627,2]
[367970583,1750979443116,-460.0,0.00021627,2]
[367970585,1750979443125,-460.0,0.00021627,2]
[367970587,1750979443134,-390.0,0.00021627,2]
[367970589,1750979443143,-460.0,0.00021627,2]
[367970591,1750979443152,-500.0,0.00021627,2]
[367970593,1750979443162,-460.0,0.00021628,2]
[367970595,1750979443171,-500.0,0.00021628,2]
[367970597,1750979443180,-395.57311899,0.00021628,2]
[367970599,1750979443189,-412.23047144,0.00021628,2]
[367970601,1750979443198,-545.78860857,0.00021628,2]
[367970603,1750979443207,-460.0,0.00021628,2]
[367970604,1750979443216,-460.0,0.00021628,2]
[367970606,1750979443225,-460.0,0.00021628,2]